Cogmind - Beta 17 @@@ ROGUE MODE // 2026.08.20 @ 12:59:37 Player: IsAway Result: Destroyed by UV-VHN(R) with Subdweller Laser Performance ------------- Evolutions (0) 0 Regions Visited (3) 600 Robots Destroyed (17) 85 Value Destroyed (438) 438 Prototype IDs (0) 0 Alien Tech Used (0) 0 Bonus (0) 0 TOTAL SCORE: 1123 Bonus ------- None Cogmind --------- Core Integrity 0/250 Matter 300/300 Energy 125/125 System Corruption 0% Temperature Cool (6) Movement Walking (120) Location -10/Subcaves Parts ------- > --- POWER (1) -------- Light Ion Engine > --- PROPULSION (2) --- Aluminum Leg Aluminum Leg > --- UTILITY (2) ------ Medium Storage Unit Sensor Array > --- WEAPON (2) ------- Beam Rifle Mining Laser > --- INVENTORY (10) --- Light Nuclear Core Aluminum Leg Aluminum Leg Compact Wheel Medium Storage Unit Scrap Shield Small Laser Subdweller Machine Gun Peak State ------------ > --- POWER ------------ Light Nuclear Core > --- PROPULSION ------- Aluminum Leg Aluminum Leg > --- UTILITY ---------- Small Storage Unit Sensor Array > --- WEAPON ----------- Small Laser Light Assault Rifle > --- INVENTORY -------- Light Ion Engine Light Ion Engine Light Ion Engine Aluminum Leg Compact Wheel Compact Wheel Flight Unit Terrain Scanner [Rating: 9] Favorites ----------- Power Light Ion Engine Engine Light Ion Engine Power Core Light Nuclear Core Propulsion Aluminum Leg Leg Aluminum Leg Wheel Compact Wheel Utility Sensor Array Device Sensor Array Storage Small Storage Unit Protection Light Armor Plating Weapon Light Assault Rifle Energy Gun Small Laser Ballistic Gun Light Assault Rifle Special Weapon Mining Laser Build | -11 -10 -10 -10 ------- Run | Yrd Mat Min Sub Slots Evolved . | . . . . Power . | . . . . Propulsion . | . . . . Utility . | . . . . Weapon . | . . . . Parts Attached 23 | 7 9 5 2 Power 5 | 1 2 2 . Engine 4 | 1 1 2 . Core 1 | . 1 . . Reactor . | . . . . Propulsion 8 | 3 3 1 1 Treads . | . . . . Leg 6 | 1 3 1 1 Wheel 2 | 2 . . . Hover . | . . . . Flight . | . . . . Utility 4 | 1 2 1 . Device 1 | . 1 . . Storage 2 | 1 . 1 . Processor . | . . . . Hackware . | . . . . Protection 1 | . 1 . . Artifact . | . . . . Weapon 6 | 2 2 1 1 Energy Gun 2 | . 1 . 1 Energy Cannon . | . . . . Ballistic Gun 3 | 2 1 . . Ballistic Cannon . | . . . . Launcher . | . . . . Special Weapon 1 | . . 1 . Impact Weapon . | . . . . Slashing Weapon . | . . . . Piercing Weapon . | . . . . Special Melee Weapon . | . . . . Unidentified Prototypes . | . . . . Parts Lost 4 | . 3 1 . Power 1 | . . 1 . Propulsion . | . . . . Utility 1 | . 1 . . Weapon 2 | . 2 . . Highest Loss Streak 2 | . 2 1 . To Critical Strikes . | . . . . Average Backups 6 | 2 5 8 8 Power 1 | . 1 1 1 Propulsion 3 | 1 3 3 3 Utility 1 | . . 2 2 Weapon . | . . 1 2 Tool/Special . | . . . . Unused Backups 8 | . . 3 5 Power . | . . . . Propulsion 1 | . . 1 . Utility 5 | . . 2 3 Weapon 2 | . . . 2 Tool/Special . | . . . . Average Slot Usage (%) 93 | . 86 99 100 Engine 12 | . 11 12 14 Core 1 | . 2 . . Leg 24 | . 20 28 28 Device 9 | . 4 14 14 Storage 14 | . 14 14 14 Protection 2 | . 5 . . Energy Gun 7 | . 3 12 9 Ballistic Gun 16 | . 23 14 4 Special Weapon 3 | . . 1 14 Peak Build Rating 9 | 5 9 9 9 Average Rating 7 | 3 6 7 8 On Entrance 5 | . 5 9 8 Avg Prop Armor Cover (%) . | . . . . Naked Turns . | . . . . Heaviest Build 18 | 13 16 18 18 Greatest Support 32 | 32 20 20 20 Greatest Overweight (x) 1 | 1 1 . . Average Overweight (x) . | . . . . Largest Inventory Capacity 10 | 8 8 10 10 Average Capacity 8 | 7 8 9 10 Most Carried 10 | 5 8 10 10 Average Carried 7 | 2 5 8 9 Final Capacity 10 | 8 8 10 10 Final Carried 10 | 4 8 10 9 Class Distribution -------------------- 100% | Mutant Dominant Class ---------------- Mutant | -10/Materials Mutant | -10/Mines Mutant | -10/Subcaves Resources | -11 -10 -10 -10 ----------- Run | Yrd Mat Min Sub Matter Collected 554 | 234 220 57 43 Remotely . | . . . . Salvage Created 644 | . 397 247 . Parts 35 | . 20 15 . Haulers Intercepted . | . . . . Recyclers Shooed 1 | . 1 . . Parts Field Recycled . | . . . . Retrieved Matter . | . . . . Parts Self-Destructed 9 | . . . 9 Prevented . | . . . . Parts Restored . | . . . . Kills | -11 -10 -10 -10 ------- Run | Yrd Mat Min Sub Combat Hostiles Destroyed 15 | . 8 7 . Guns 15 | . 8 7 . Classes Destroyed 5 | . 4 1 . Builder 1 | . 1 . . Recycler 1 | . 1 . . Swarmer 6 | . 3 3 . Grunt 7 | . 5 2 . Sentry 2 | . . 2 . Best Kill Streak 4 | . 3 4 . Combat Bots Only 4 | . 2 4 . Max Kills in Single Turn 2 | . 2 2 . Gunslinging 1 | . . 1 . Exploded . | . . . . Melee . | . . . . Uniques/NPCs Destroyed . | . . . . Combat | -11 -10 -10 -10 -------- Run | Yrd Mat Min Sub Hostile Shots Fired 117 | . 71 36 10 Missed 23 | . 6 12 5 Hits 94 | . 65 24 5 Projectile 94 | . 65 24 5 Critical Strikes 3 | . 2 1 . Damage Taken 1088 | . 673 295 120 Core 260 | . 125 64 71 Absorbed by Shields . | . . . . Core Remaining (%) 100 | 100 . . . Volleys Fired 81 | . 37 25 19 Largest 2 | . 2 2 1 Hottest 120 | . 60 120 100 Shots Fired 140 | . 71 50 19 Gun 130 | . 71 47 12 Cannon . | . . . . Launcher . | . . . . Special 10 | . . 3 7 Kinetic 84 | . 59 25 . Thermal 56 | . 12 25 19 Explosive . | . . . . Electromagnetic . | . . . . Robot Hit Streak 16 | . 9 16 8 Robot Miss Streak 3 | . 3 3 1 Penetration Max . | . . . . Secondary Targets 4 | . 3 1 . Max Gunslinging Chain 1 | . 1 1 . Shots Hit Robots 91 | . 45 35 11 Core Hits 36 | . 22 14 . Critical Kills . | . . . . Critical Parts Destroyed . | . . . . Critical Strikes 1 | . . . 1 Burn 1 | . . . 1 Melee Attacks . | . . . . Impact . | . . . . Slashing . | . . . . Piercing . | . . . . Sneak Attacks . | . . . . Combat Hostiles . | . . . . Follow-up Attacks . | . . . . Damage Inflicted 855 | . 498 327 30 Guns 855 | . 498 327 30 Cannons . | . . . . Explosions . | . . . . Melee . | . . . . Ramming . | . . . . Kinetic 530 | . 401 129 . Thermal 325 | . 97 198 30 Explosive . | . . . . Electromagnetic . | . . . . Impact . | . . . . Slashing . | . . . . Piercing . | . . . . Highest Corruption . | . . . . Average Corruption . | . . . . Corruption Purged . | . . . . Corruption Blocked . | . . . . Overload Shots . | . . . . Overflow Damage . | . . . . Projectiles . | . . . . Explosions . | . . . . Melee . | . . . . Knockbacks . | . . . . Impact . | . . . . Kinetic . | . . . . Secondary . | . . . . Self-Inflicted Damage . | . . . . Shots . | . . . . Rammed . | . . . . Targets Rammed . | . . . . Kicked . | . . . . Crushed . | . . . . Highest Temperature 106 | . 106 94 . Average Temperature 36 | . 37 35 . Received Heat Transfer 396 | . 273 117 6 Siege Activations . | . . . . Martial Activations . | . . . . Shielding Activations . | . . . . Robots Disrupted . | . . . . Combat Hostiles . | . . . . Robots Corrupted . | . . . . Combat Hostiles . | . . . . Parts Fried . | . . . . Impact Corruptions . | . . . . Robots Melted . | . . . . Combat Hostiles . | . . . . Parts Melted . | . . . . Heat Transferred 823 | . 225 450 148 Parts Sabotaged . | . . . . Parts Stolen . | . . . . Parts Stripped . | . . . . Power Chain Reactions . | . . . . Alert | -11 -10 -10 -10 ------- Run | Yrd Mat Min Sub Maximum Alert Level . | . . . . Low Security (%) 100 | 100 100 100 . Level 1 . | . . . . Level 2 . | . . . . Level 3 . | . . . . Level 4 . | . . . . Level 5 . | . . . . High Security . | . . . . Max Security . | . . . . Peak Influence 60 | . 57 60 . Initial 6 | . . 6 . Average 20 | . 20 24 . Influence Increases 363 | . 201 162 . Destroy 0b10 Robot/C 300 | . 160 140 . Destroy 0b10 Robot/NC 10 | . 10 . . Destroy Leader 50 | . 30 20 . Destroy Structure 3 | . 1 2 . Influence Decreases 363 | . 184 157 22 Entered New Map 23 | . . 11 12 Time Decay 300 | . 154 136 10 Lost Part 40 | . 30 10 . Squads Dispatched 1 | . 1 . . Investigation 1 | . 1 . . Extermination . | . . . . Reinforcement . | . . . . Assault . | . . . . Garrison . | . . . . Intercept . | . . . . Searches Triggered . | . . . . Construction Impeded . | . . . . Haulers Reinforced . | . . . . Active Scanning Responses . | . . . . Cargo Convoy Interrupts . | . . . . Stealth | -11 -10 -10 -10 --------- Run | Yrd Mat Min Sub Distress Signals . | . . . . Communications Jammed . | . . . . Distress Signals . | . . . . Times Spotted 18 | . 8 7 3 Peak Tracking Total 4 | . 3 4 2 Tactical Retreats . | . . . . Traps | -11 -10 -10 -10 ------- Run | Yrd Mat Min Sub Traps Triggered 1 | . 1 . . Indirectly . | . . . . Trap Hack Attempts . | . . . . Triggered . | . . . . Disarmed . | . . . . Reprogrammed . | . . . . Reused . | . . . . Traps Extracted . | . . . . Installed . | . . . . Triggered . | . . . . Machines | -11 -10 -10 -10 ---------- Run | Yrd Mat Min Sub Machines Disabled . | . . . . Max in Single Turn . | . . . . Machines Repaired . | . . . . Machines Dismantled . | . . . . Machines Sabotaged . | . . . . Overloaded Fab Kills . | . . . . Hacking | -11 -10 -10 -10 --------- Run | Yrd Mat Min Sub Machines Accessed . | . . . . Terminals . | . . . . Fabricators . | . . . . Repair Stations . | . . . . Recycling Units . | . . . . Scanalyzers . | . . . . Garrison Access . | . . . . Total Hacks . | . . . . Successful . | . . . . Failed . | . . . . Catastrophic . | . . . . Database Lockouts . | . . . . Manual . | . . . . Terminals . | . . . . Fabricators . | . . . . Repair Stations . | . . . . Recycling Units . | . . . . Scanalyzers . | . . . . Garrison Access . | . . . . Terminal Hacks . | . . . . Fabricator Hacks . | . . . . Repair Station Hacks . | . . . . Recycling Unit Hacks . | . . . . Scanalyzer . | . . . . Garrison Access Hacks . | . . . . Unauthorized Hacks . | . . . . Terminals . | . . . . Fabricators . | . . . . Repair Stations . | . . . . Recycling Units . | . . . . Scanalyzers . | . . . . Garrison Access . | . . . . Data Cores Recovered . | . . . . Used . | . . . . Hacking Detections . | . . . . Full Trace Events . | . . . . Feedback Events . | . . . . Feedback Blocked . | . . . . Robot Schematics Acquired . | . . . . Robots Built . | . . . . Authchips . | . . . . Time . | . . . . Total Robot Build Rating . | . . . . Part Schematics Acquired . | . . . . Parts Built . | . . . . Authchips . | . . . . Time . | . . . . Total Part Build Rating . | . . . . Part Studies Acquired . | . . . . Parts Repaired . | . . . . Time . | . . . . Parts Recycled . | . . . . Recycled Matter . | . . . . Retrieved Matter . | . . . . Retrieved Components . | . . . . Parts Scanalyzed . | . . . . Part Schematics Acquired . | . . . . Parts Damaged . | . . . . Bothacking | -11 -10 -10 -10 ------------ Run | Yrd Mat Min Sub Used RIF Installer . | . . . . Robots Hacked . | . . . . Non-combat . | . . . . Combat . | . . . . Robot Hacks Applied . | . . . . Relay Couplers Released . | . . . . Fabnet Peak Effective % . | . . . . Robots Rewired . | . . . . Allies Hacked . | . . . . Hacks Repelled . | . . . . Allies | -11 -10 -10 -10 -------- Run | Yrd Mat Min Sub Total Allies 3 | . . 3 . Largest Group 3 | . . 3 3 Highest-Rated Group 40 | . . 40 40 Highest-Rated Ally 16 | . . 16 16 Total Orders . | . . . . Ally Attacks 27 | . . . 27 Total Damage 96 | . . . 96 Kills . | . . . . Allies Corrupted . | . . . . Allies Melted . | . . . . Intel | -11 -10 -10 -10 ------- Run | Yrd Mat Min Sub Active Infowar (turns) 737 | . 175 358 204 Sensors 737 | . 175 358 204 Robot Analysis Total . | . . . . Derelict Logs Recovered 3 | . . 2 1 Drone Launches . | . . . . Drone Recoveries . | . . . . Exploration | -11 -10 -10 -10 ------------- Run | Yrd Mat Min Sub Turns Passed 1160 | 58 540 358 204 Spaces Moved 606 | 33 271 188 114 Core 2 | 2 . . . Treads . | . . . . Legs 593 | 20 271 188 114 Wheels 11 | 11 . . . Hover . | . . . . Flight . | . . . . Fastest Speed 50 | 50 120 120 120 Average Speed 134 | 134 150 120 120 Slowest Speed 190 | 190 190 120 120 Overloaded Moves . | . . . . Propulsion Burnouts . | . . . . Robots Hopped . | . . . . Potential Cave-ins . | . . . . Cave-ins Triggered . | . . . . Exploration Rate (%) 28 | 3 52 46 12 Regions Visited 3 Branch Regions 2 Pre-discovered Areas . | . . . . Known Exits Taken . | . . . . Unknown Exits Taken 3 | 1 1 1 . Scrap Searched 1 | . . 1 . Spaces Dug 3 | . . 3 . Terrain Destroyed 3 | . . 3 . Melee . | . . . . Projectile 3 | . . 3 . AOE . | . . . . Terrain Rammed . | . . . . Walls Destroyed . | . . . . Machines Disabled . | . . . . Actions | -11 -10 -10 -10 --------- Run | Yrd Mat Min Sub Total 801 | 45 337 269 150 Wait 63 | . 13 43 7 Move 603 | 32 270 187 114 Hop . | . . . . Pick Up 16 | 4 5 5 2 Fast Attach 10 | 6 4 . . Attach 4 | 1 2 1 . Detach 1 | 1 . . . Swap 10 | . 3 4 3 Drop 13 | 1 3 4 5 Fire 81 | . 37 25 19 Melee . | . . . . Ram . | . . . . Kick . | . . . . Crush . | . . . . Escape Stasis . | . . . . Rewire . | . . . . Trap . | . . . . Miscellaneous . | . . . . Route ------- -11/Scrapyard -10/Materials (discovered 3 exits: [*Mat x2] / [*Min]) -10/Mines -10/Subcaves (discovered 1 exit: Mat) History --------- Turn | Location | Event 26 | -11/Scrapyard | Discovered new exit (range 15) 59 | -11/Scrapyard | Entered Materials 160 | -10/Materials | Discovered new exit (range 8) 308 | -10/Materials | Build established: Mutant 462 | -10/Materials | Discovered new exit (range 15) 584 | -10/Materials | Discovered new exit (range 14) 599 | -10/Materials | Entered Mines 668 | -10/Mines | Core integrity fell below 50% 750 | -10/Mines | Learned Materials terminal intel 889 | -10/Mines | Assisted by bots powering up and referring to "LRC-V3" 892 | -10/Mines | Learned location of 1 exit from Materials 944 | -10/Mines | Discovered new exit (range 6) 957 | -10/Mines | Entered Subcaves 957 | -10/Subcaves | Accompanied by 3 allies 958 | -10/Subcaves | Approached by a straggling Scientist 960 | -10/Subcaves | Identified exit to Materials 1024 | -10/Subcaves | Core integrity fell below 20% 1161 | -10/Subcaves | Ambushed by swarm of Subdwellers 1161 | -10/Subcaves | Destroyed by UV-VHN(R) with Subdweller Laser Last Messages --------------- PL-PGJ(R) destroyed. HV Slug penetrates Twisted Machinery. Dropped Aluminum Leg. Acquired 3 matter. Acquired 40 matter. Subatomizers dissect the Disposable Heat Sink. Dropped Lgt. Assault Rifle. Acquired Sub. Machine Gun. Dropped Terrain Scanner. XQ-OXT(c): "I think it's somewhere west of here" Subatomizers dissect the Aluminum Leg, destroying it. XQ-OXT(c): "I think it's somewhere west of here" Subatomizers dissect the Disposable Heat Sink. XQ-OXT(c): "I think it's somewhere northwest of here" A mess of Twisted Machinery falls from the cavern ceiling. UV-VHN(R) comes tumbling into view. 4V-64N(h): "The Subs are coming!" Map ----- +----------------------------------------------------+ | ?????????????????????????????????????????????????? | | ?????????????????????????????????????????????????? | | ?????????????????????????????????????????????????? | | ?????????????????????????????????????????????????? | | ?????????????????????????????????????????????????? | | ?????????????????????????????????????????????????? | | ?????????????????????????????????????????????????? | | ?????????????????????????????????????????????????? | | ?????????????????????????????????????????????????? | | ?????????????????????????????????????????????????? | | ?????????????????????????????????????????????????? | | ???????????????????????????# ????????????????????? | | ????????????????????????????" ???????????????????? | | ????????????????????????????? "??????????????????? | | ??????????????????????????????" ?######??????????? | | ??????????????????????????????? # #?????####?? | | ????????????????????????????????? ##????## ##? | | ?????????????????????????????????## #??### ## | | ???????????????????????????###?###< #### # | | ???????????????????????????# ##"" " ## | | ?????????????????????????### """ | | ?????????????????????????# R ######## | | ?????????????????????????# ##???# # | | ???????????????????????###c ### ## | | ??????????????????????## g ### ##? | | ??????????????????????#g @ #?# #?? | | ??????????????????????# h #?? | | ??????????????????????# "" #? | | ??????????????????????## ## "" #? | | ???????????????????????#### #? """" ### ##? | | ??????????????????????????#####? " " ##?# ?? | | ????????????????????????????????# ##"##?? " #? | | ?????????????????????????????????# ""????"" #? | | ?????????????????????????????????? ???????? ? | | ?????????????????????????????????? #????????????? | | ?????????????????????????????????? ??????????????? | | ?????????????????????????????????????????????????? | | ?????????????????????????????????????????????????? | | ?????????????????????????????????????????????????? | | ?????????????????????????????????????????????????? | | ?????????????????????????????????????????????????? | | ?????????????????????????????????????????????????? | | ?????????????????????????????????????????????????? | | ?????????????????????????????????????????????????? | | ?????????????????????????????????????????????????? | | ?????????????????????????????????????????????????? | | ?????????????????????????????????????????????????? | | ?????????????????????????????????????????????????? | | ?????????????????????????????????????????????????? | | ?????????????????????????????????????????????????? | +----------------------------------------------------+ Best States ------------- Heat Dissipation 25 Energy Generation 14 Energy Capacity 250 Matter Stores 300 Matter Capacity 300 Sight Range 16 Robot Scan Range 14 Terrain Scan Density 10 Armor Coverage 150 Evasion (%) 55 Item Schematics ----------------- None Robot Schematics ------------------ None Fabricated ------------ Nothing Repaired ---------- Nothing Studied --------- None Alien Tech Used ----------------- None Achievements -------------- None Challenges ------------ None Game ------ Seed GyrokineticFusionHammer Manual? 0 Play Time 00:17:04 Cumulative 53.5 hours Start 2026.08.20 @ 12:39:18 End 2026.08.20 @ 12:59:37 Sessions 1 Manual Loads 0 Difficulty Rogue Special Mode None Game No. 68 Rogue 68 Adventurer 0 Explorer 0 Win Type - Total 0 Types 0/0/0/0/0/0/0/0/0/0 Lore% 42 Gallery% 32 Achievement% 28 Wizard Run 0 Options --------- Layout 1 ASCII 0 Keyboard 0 Movement Mouse Keybinds 0 Fullscreen 2 Font 18/SmallcapsGlow Map View 51x43 Zoom Use 0% Tactical HUD 0 Map Filters NONE Filters NONE Steam 1 RUN: c96ee798-ef9b-4f70-b268-5703fbf86ff1